bitfinex/quotes_BTCUSD_20241013
["timestamp","ask_amount","ask_price","bid_price","bid_amount"]
[1728832291109,0.005,62443.0,62441.0,0.04810486]
[1728832291318,0.003,62443.0,62440.0,0.48732887]
[1728832291593,0.003,62443.0,62441.0,0.04810486]
[1728832291836,0.163146,62443.0,62441.0,0.04810486]
[1728832292052,0.003,62443.0,62441.0,0.05110486]
[1728832292266,0.003,62443.0,62441.0,0.003]
[1728832292501,0.163147,62443.0,62441.0,0.003]
[1728832292737,0.163147,62443.0,62442.0,0.04808471]
[1728832292948,0.003,62443.0,62442.0,0.04808471]
[1728832293164,0.164784,62443.0,62442.0,0.04808471]
[1728832293384,0.160148,62442.0,62441.0,0.05108471]
[1728832294016,0.160148,62442.0,62441.0,0.04808471]
[1728832294259,0.160148,62442.0,62441.0,0.04807991]
[1728832294721,0.160148,62442.0,62440.0,0.16122401]
[1728832294722,0.160148,62442.0,62440.0,0.20930392]
[1728832294994,0.160148,62442.0,62441.0,0.003]
[1728832295201,0.26512058,62442.0,62441.0,0.003]
[1728832295415,0.160151,62441.0,62440.0,0.20930392]
[1728832295842,0.10497258,62442.0,62440.0,0.20930392]
[1728832295991,0.10597258,62442.0,62441.0,0.006]
[1728832296208,0.26512058,62442.0,62440.0,0.20930392]
[1728832296406,0.26512058,62442.0,62441.0,0.18996239]
[1728832296610,0.10497258,62442.0,62441.0,0.18996239]
[1728832297022,0.26512058,62442.0,62441.0,0.18996239]
[1728832297372,0.10497258,62442.0,62441.0,0.20920112]
[1728832297609,0.26512058,62442.0,62441.0,0.18996239]
[1728832297840,0.26612058,62442.0,62441.0,0.19592892]
[1728832298051,0.26612058,62442.0,62441.0,0.21515356]
[1728832298268,0.10697258,62442.0,62441.0,0.30308873]
[1728832298479,0.10697258,62442.0,62441.0,0.21473291]
[1728832298705,0.26712058,62442.0,62441.0,0.24597296]
[1728832299239,0.10697258,62442.0,62441.0,0.22672303]
[1728832299348,0.26712058,62442.0,62441.0,0.29881589]
[1728832299590,0.10697258,62442.0,62441.0,0.2459477]
[1728832299835,0.26712058,62442.0,62441.0,0.22672303]
[1728832300096,0.26712058,62442.0,62441.0,0.34207172]
[1728832300339,0.10697258,62442.0,62441.0,0.22672303]
[1728832300579,0.26712058,62442.0,62441.0,0.22672303]
[1728832301034,0.26712058,62442.0,62441.0,0.21423578]
[1728832301263,0.10697258,62442.0,62441.0,0.21423578]
[1728832301509,0.10697258,62442.0,62441.0,0.2022204]
[1728832301510,0.26712058,62442.0,62441.0,0.2022204]
[1728832301771,0.26712058,62442.0,62441.0,0.21423406]
[1728832302007,0.26712058,62442.0,62441.0,0.22671952]
[1728832302464,0.10697258,62442.0,62441.0,0.22671952]
[1728832302708,0.10697258,62442.0,62441.0,0.29880028]
[1728832303618,0.26712058,62442.0,62441.0,0.29880028]
[1728832303856,0.26712058,62442.0,62441.0,0.29876596]
[1728832304304,0.26712058,62442.0,62441.0,0.12138267]
[1728832305495,0.26712058,62442.0,62441.0,0.12220157]
[1728832305743,0.26712058,62442.0,62441.0,0.29958383]
[1728832306619,0.26712058,62442.0,62441.0,0.12220157]
[1728832308641,0.26712058,62442.0,62441.0,0.12220238]
[1728832308875,0.26712058,62442.0,62441.0,0.03030581]
[1728832309104,0.26712058,62442.0,62441.0,0.02562271]
[1728832309327,0.26712058,62442.0,62441.0,0.04965346]
[1728832309555,0.26712058,62442.0,62441.0,0.12173382]
[1728832310027,0.26712058,62442.0,62441.0,0.13422164]
[1728832310227,0.26712058,62442.0,62441.0,0.06214128]
[1728832310480,0.26712058,62442.0,62441.0,0.13422164]
[1728832311405,0.26712058,62442.0,62441.0,0.1534517]
[1728832313310,0.26712058,62442.0,62441.0,0.1534578]
[1728832313708,0.26712058,62442.0,62441.0,0.33085825]
[1728832317209,0.162148,62442.0,62441.0,0.33085825]
[1728832317433,0.26712058,62442.0,62441.0,0.33085825]
[1728832317875,0.26875858,62442.0,62441.0,0.33085825]
[1728832318153,0.26875858,62442.0,62441.0,0.31884289]
[1728832319753,0.26875858,62442.0,62441.0,0.28762828]
[1728832319975,0.26875858,62442.0,62441.0,0.31891686]
[1728832321502,0.26875858,62442.0,62441.0,0.31895389]
[1728832321916,0.26875858,62442.0,62441.0,0.24685707]
[1728832322177,0.26875858,62442.0,62441.0,0.14152974]
[1728832322981,0.26875858,62442.0,62441.0,0.3189677]
[1728832325308,0.26875858,62442.0,62441.0,0.24686926]
[1728832325788,0.26875858,62442.0,62441.0,0.31898463]
[1728832326320,0.26875858,62442.0,62441.0,0.24690379]
[1728832327442,0.26875858,62442.0,62441.0,0.34305744]
[1728832330198,0.26875858,62442.0,62441.0,0.34305735]
[1728832330421,0.26875858,62442.0,62441.0,0.24690294]
[1728832330875,0.26875858,62442.0,62441.0,0.06943045]
[1728832331101,0.26875858,62442.0,62441.0,0.24701506]
[1728832331341,0.26875858,62442.0,62441.0,0.367284]
[1728832331557,0.26875858,62442.0,62441.0,0.24701506]
[1728832332231,0.26875858,62442.0,62441.0,0.36731103]
[1728832332476,0.26875858,62442.0,62441.0,0.24701506]
[1728832332936,0.163786,62442.0,62441.0,0.24701506]
[1728832333169,0.163786,62442.0,62441.0,0.23450834]
[1728832334699,0.34505858,62442.0,62441.0,0.23450834]
[1728832334932,0.34505858,62442.0,62441.0,0.35484922]
[1728832334933,0.35005858,62442.0,62441.0,0.35484922]
[1728832335182,0.53185858,62442.0,62441.0,0.23450834]
[1728832335692,0.53185858,62442.0,62441.0,0.23461431]
[1728832336401,0.53185858,62442.0,62441.0,0.33088366]
[1728832340248,0.53085858,62442.0,62441.0,0.31988366]
[1728832340724,0.53185858,62442.0,62441.0,0.33088366]
[1728832341237,0.53085858,62442.0,62441.0,0.31987725]
[1728832341463,0.53185858,62442.0,62441.0,0.33087725]
[1728832342323,0.53185858,62442.0,62441.0,0.31162554]
[1728832343683,0.63683116,62442.0,62441.0,0.03766561]
[1728832343910,0.53185858,62442.0,62441.0,0.03766561]
[1728832344129,0.53185858,62442.0,62441.0,0.08579481]
[1728832345565,0.53185858,62442.0,62441.0,0.03766561]
[1728832348045,0.53185858,62442.0,62441.0,0.03765721]
[1728832348268,0.53185858,62442.0,62441.0,0.03765728]
[1728832348488,0.53185858,62442.0,62441.0,0.02562969]
[1728832350108,0.53185858,62442.0,62441.0,0.03765599]
[1728832350348,0.53185858,62442.0,62441.0,0.08576727]
[1728832351754,0.350586,62442.0,62441.0,0.08576657]
[1728832352014,0.350586,62442.0,62441.0,0.28739756]
[1728832352015,0.45555858,62442.0,62441.0,0.28739756]
[1728832352264,0.45555858,62442.0,62441.0,0.21523064]
[1728832352484,0.45555858,62442.0,62441.0,0.2873874]
[1728832352703,0.45555858,62442.0,62441.0,0.21523064]
[1728832353457,0.45555858,62442.0,62441.0,0.21522966]
[1728832353679,0.45555858,62442.0,62441.0,0.2873867]
[1728832354376,0.45555858,62442.0,62441.0,0.28739061]
[1728832354603,0.45555858,62442.0,62441.0,0.21523235]
[1728832355289,0.45555858,62442.0,62441.0,0.20320639]
[1728832355516,0.45555858,62442.0,62441.0,0.28739127]
[1728832355740,0.45555858,62442.0,62441.0,0.21523247]
[1728832355965,0.45555858,62442.0,62441.0,0.28739117]
[1728832356666,0.45555858,62442.0,62441.0,0.017819]
[1728832356667,0.63783116,62442.0,62441.0,0.017819]
[1728832357581,0.63683116,62442.0,62441.0,0.006819]
[1728832358298,0.63583116,62442.0,62441.0,0.000819]
[1728832358515,0.63683116,62442.0,62441.0,0.000819]
[1728832358947,0.63583116,62442.0,62441.0,0.004819]
[1728832359171,0.64083116,62442.0,62441.0,0.004819]
[1728832359394,0.64083116,62442.0,62441.0,0.000819]
[1728832364592,0.005,62435.0,62434.0,0.01980763]
[1728832364817,0.005,62435.0,62429.0,0.0321]
[1728832364818,0.005,62430.0,62429.0,0.0321]
[1728832365032,0.005,62430.0,62429.0,0.05190905]
[1728832365033,0.27015158,62430.0,62429.0,0.05190905]
[1728832365251,0.27015158,62430.0,62429.0,0.03988913]
[1728832365725,0.27015158,62430.0,62429.0,0.00778913]
[1728832366472,0.27115158,62430.0,62429.0,0.01578913]
[1728832366692,0.27115158,62430.0,62429.0,0.02878913]
[1728832366923,0.37612416,62430.0,62429.0,0.02878913]
[1728832367142,0.54595158,62430.0,62429.0,0.008]
[1728832368057,0.38477258,62430.0,62426.0,0.0321]
[1728832368353,0.38477258,62430.0,62423.0,0.04807482]
[1728832368354,0.165194,62424.0,62423.0,0.04807482]
[1728832368591,0.165194,62424.0,62420.0,0.000819]
[1728832368592,0.165202,62421.0,62420.0,0.000819]
[1728832368809,0.27017458,62421.0,62420.0,0.000819]
[1728832369038,0.34587458,62421.0,62420.0,0.000819]
[1728832369303,0.64994716,62421.0,62420.0,0.000819]
[1728832369544,0.54497458,62421.0,62420.0,0.000819]
[1728832370434,0.64994716,62421.0,62420.0,0.006819]
[1728832370685,0.005,62417.0,62416.0,0.000819]
[1728832370943,0.65495716,62417.0,62416.0,0.000819]
[1728832371859,0.75992974,62417.0,62416.0,0.000819]
[1728832372113,0.005,62410.0,62409.0,0.000819]
[1728832372371,0.37517516,62410.0,62409.0,0.000819]
[1728832372586,0.63647516,62410.0,62409.0,0.000819]
[1728832373473,0.63647516,62410.0,62409.0,0.005819]
[1728832374633,0.63647516,62410.0,62409.0,0.006819]
[1728832376269,0.73647516,62410.0,62409.0,0.006819]
[1728832377580,0.63150258,62410.0,62409.0,0.006819]
[1728832378001,0.52653,62410.0,62409.0,0.006819]
[1728832383807,0.52653,62410.0,62409.0,0.006779]
[1728832386438,0.63150258,62410.0,62409.0,0.006779]
[1728832387618,0.37020258,62410.0,62409.0,0.006779]
[1728832388964,0.55250258,62410.0,62409.0,0.006779]
[1728832389424,0.68314701,62410.0,62409.0,0.006779]
[1728832392993,0.68814701,62410.0,62409.0,0.006779]
[1728832395542,0.160264,62397.0,62396.0,0.000819]
[1728832395758,0.165264,62397.0,62396.0,0.00859407]
[1728832395971,0.27023658,62397.0,62396.0,0.00859407]
[1728832396431,0.27023658,62397.0,62396.0,0.02059086]
[1728832397299,0.27123658,62397.0,62396.0,0.03059086]
[1728832397813,0.27123658,62397.0,62396.0,0.02281579]
[1728832398025,0.27123658,62397.0,62396.0,0.03060028]
[1728832398497,0.27223658,62397.0,62396.0,0.03660028]
[1728832404154,0.37223658,62397.0,62396.0,0.03660028]
[1728832404396,0.37223658,62397.0,62396.0,0.03663733]
[1728832405067,0.37223658,62397.0,62396.0,0.016819]
[1728832405281,0.37223658,62397.0,62396.0,0.03665245]
[1728832406897,0.267264,62397.0,62396.0,0.03665245]
[1728832407120,0.37223658,62397.0,62396.0,0.03665245]
[1728832408236,0.37223658,62397.0,62396.0,0.02461848]
[1728832409881,0.37223658,62397.0,62396.0,0.03664939]
[1728832410126,0.37223658,62397.0,62396.0,0.02461719]
[1728832410340,0.37223658,62397.0,62396.0,0.02885095]
[1728832411014,0.37223658,62397.0,62396.0,0.03664914]
[1728832411867,0.55843658,62397.0,62396.0,0.02461719]
[1728832412115,0.55843658,62397.0,62396.0,0.03664956]
[1728832412366,0.55843658,62397.0,62396.0,0.02461685]
[1728832412612,0.55843658,62397.0,62396.0,0.03664923]
[1728832413327,0.55843658,62397.0,62396.0,0.03660923]
[1728832414532,0.66340916,62397.0,62396.0,0.03660923]
[1728832414766,0.66340916,62397.0,62396.0,0.016779]
[1728832414997,0.66340916,62397.0,62396.0,0.02457522]
[1728832415237,0.66340916,62397.0,62396.0,0.016779]
[1728832418160,0.55843658,62397.0,62396.0,0.016779]
[1728832420328,0.55843658,62397.0,62396.0,0.02457512]
[1728832420567,0.55843658,62397.0,62396.0,0.016779]
[1728832420799,0.55843658,62397.0,62396.0,0.02457506]
[1728832421268,0.55843658,62397.0,62396.0,0.016779]
[1728832426036,0.55843658,62397.0,62396.0,0.02457738]
[1728832426263,0.55843658,62397.0,62396.0,0.016779]
[1728832428479,0.55843658,62397.0,62396.0,0.02457766]
[1728832429599,0.63993658,62397.0,62396.0,0.02457766]
[1728832430331,0.63993658,62397.0,62396.0,0.016779]
[1728832430760,0.63993658,62397.0,62396.0,0.02457835]
[1728832431179,0.63993658,62397.0,62396.0,0.016779]
[1728832431402,0.63993658,62397.0,62396.0,0.02457881]
[1728832432277,0.64157458,62397.0,62396.0,0.02457881]
[1728832434200,0.64147458,62397.0,62396.0,0.02457881]
[1728832434642,0.536502,62397.0,62396.0,0.02457881]
[1728832434861,0.37377458,62397.0,62396.0,0.03661725]
[1728832435344,0.37377458,62397.0,62396.0,0.0416369]
[1728832435789,0.37377458,62397.0,62396.0,0.02959856]
[1728832436022,0.37377458,62397.0,62396.0,0.04163813]
[1728832438990,0.268802,62397.0,62396.0,0.04163813]
[1728832439215,0.37377458,62397.0,62396.0,0.04163813]
[1728832440800,0.37377458,62397.0,62396.0,0.03383825]
[1728832441020,0.37377458,62397.0,62396.0,0.04164574]
[1728832441508,0.37377458,62397.0,62396.0,0.10226729]
[1728832441722,0.37377458,62397.0,62396.0,0.10226927]
[1728832441937,0.37377458,62397.0,62396.0,0.0541341]
[1728832442150,0.37377458,62397.0,62396.0,0.10226933]
[1728832442371,0.37377458,62397.0,62396.0,0.10226952]
[1728832442590,0.37377458,62397.0,62396.0,0.05413312]
[1728832442811,0.37377458,62397.0,62396.0,0.04164574]
[1728832443038,0.64707458,62397.0,62396.0,0.04164574]
[1728832443259,0.64707458,62397.0,62396.0,0.02960323]
[1728832443481,0.64707458,62397.0,62396.0,0.04164506]
[1728832443691,0.64707458,62397.0,62396.0,0.016779]
[1728832443907,0.64707458,62397.0,62396.0,0.04164475]
[1728832444396,0.64707458,62397.0,62396.0,0.02960276]
[1728832444828,0.64707458,62397.0,62396.0,0.04164483]
[1728832447641,0.64707458,62397.0,62396.0,0.02960332]
[1728832447882,0.64707458,62397.0,62396.0,0.0416461]
[1728832448155,0.64707458,62397.0,62396.0,0.08978604]
[1728832450057,0.64707458,62397.0,62396.0,0.07774326]
[1728832450286,0.37377458,62397.0,62396.0,0.08978639]
[1728832450518,0.268802,62397.0,62396.0,0.08978639]
[1728832450807,0.37377458,62397.0,62396.0,0.08978639]
[1728832451034,0.37377458,62397.0,62396.0,0.12634516]
[1728832451263,0.37377458,62397.0,62396.0,0.05413524]
[1728832451516,0.37377458,62397.0,62396.0,0.04164647]
[1728832451767,0.37377458,62397.0,62396.0,0.12634511]
[1728832452046,0.37377458,62397.0,62396.0,0.08979927]
[1728832452300,0.37377458,62397.0,62396.0,0.04164647]
[1728832453234,0.37377458,62397.0,62396.0,0.10883605]
[1728832453476,0.37377458,62397.0,62396.0,0.03662613]
[1728832453720,0.37377458,62397.0,62396.0,0.10886091]
[1728832453959,0.37377458,62397.0,62396.0,0.03662613]
[1728832454201,0.37377458,62397.0,62396.0,0.29910987]
[1728832454719,0.37377458,62397.0,62396.0,0.29911782]
[1728832454971,0.37377458,62397.0,62396.0,0.03662613]
[1728832455218,0.37377458,62397.0,62396.0,0.29911819]
[1728832455446,0.37377458,62397.0,62396.0,0.22688353]
[1728832455673,0.37377458,62397.0,62396.0,0.29912104]
[1728832455929,0.37377458,62397.0,62396.0,0.22688353]
[1728832456161,0.37377458,62397.0,62396.0,0.03662612]
[1728832456390,0.37377458,62397.0,62396.0,0.2866423]
[1728832456619,0.37377458,62397.0,62396.0,0.21440413]
[1728832456852,0.37377458,62397.0,62396.0,0.22689197]
[1728832457088,0.37377458,62397.0,62396.0,0.2866466]
[1728832457590,0.37377458,62397.0,62396.0,0.21440413]
[1728832457822,0.37377458,62397.0,62396.0,0.28665038]
[1728832458975,0.37377458,62397.0,62396.0,0.03662612]
[1728832458976,0.64577458,62397.0,62396.0,0.03662612]
[1728832459233,0.75074716,62397.0,62396.0,0.03662612]
[1728832459492,0.75074716,62397.0,62396.0,0.0366257]
[1728832460976,0.75074716,62397.0,62396.0,0.02458329]
[1728832461255,0.75074716,62397.0,62396.0,0.016779]
[1728832461968,0.74974716,62397.0,62396.0,0.006779]
[1728832462398,0.75074716,62397.0,62396.0,0.012779]
[1728832462829,0.74974716,62397.0,62396.0,0.006779]
[1728832463280,0.538802,62397.0,62396.0,0.006779]
[1728832463507,0.538802,62397.0,62396.0,0.008779]
[1728832463728,0.64377458,62397.0,62396.0,0.008779]
[1728832464164,0.64377458,62397.0,62396.0,0.010779]
[1728832464377,0.74377458,62397.0,62396.0,0.010779]
[1728832464873,0.84874716,62397.0,62396.0,0.010779]
[1728832465090,0.74377458,62397.0,62396.0,0.010779]
[1728832466667,0.638802,62397.0,62396.0,0.010779]
[1728832466889,0.47177458,62397.0,62396.0,0.010779]
[1728832467116,0.47177458,62397.0,62396.0,0.01857823]
[1728832467352,0.47177458,62397.0,62396.0,0.06674424]
[1728832467777,0.47177458,62397.0,62396.0,0.07877834]
[1728832467990,0.47177458,62397.0,62396.0,0.03061233]
[1728832470805,0.47177458,62397.0,62396.0,0.01857823]
[1728832471019,0.47177458,62397.0,62396.0,0.03061228]
[1728832472476,0.47177458,62397.0,62396.0,0.010779]
[1728832472944,0.47177458,62397.0,62396.0,0.0185783]
[1728832473201,0.47177458,62397.0,62396.0,0.02281302]
[1728832473427,0.47177458,62397.0,62396.0,0.04264634]
[1728832473686,0.47177458,62397.0,62396.0,0.11335839]
[1728832473930,0.47177458,62397.0,62396.0,0.02907812]
[1728832475788,0.47177458,62397.0,62396.0,0.02907785]
[1728832477389,0.54747458,62397.0,62396.0,0.02127882]
[1728832477627,0.74387458,62397.0,62396.0,0.02127882]
[1728832477847,0.74387458,62397.0,62396.0,0.02209782]
[1728832480009,0.84884716,62397.0,62396.0,0.02209782]
[1728832480236,0.74387458,62397.0,62396.0,0.02209782]
[1728832480896,0.84884716,62397.0,62396.0,0.02209782]
[1728832481111,0.74387458,62397.0,62396.0,0.02209782]
[1728832481979,0.84884716,62397.0,62396.0,0.02209782]
[1728832483334,0.84384716,62397.0,62396.0,0.0100638]
[1728832486874,0.84884716,62397.0,62396.0,0.0100638]
[1728832487629,0.84384716,62397.0,62396.0,0.0100638]
[1728832487870,0.84884716,62397.0,62396.0,0.0100638]
[1728832488349,0.84384716,62397.0,62396.0,0.0100638]
[1728832488587,0.84884716,62397.0,62396.0,0.0100638]
[1728832488843,0.84384716,62397.0,62396.0,0.0100638]
[1728832489334,0.84884716,62397.0,62396.0,0.0100638]
[1728832489583,0.638902,62397.0,62396.0,0.0100638]
[1728832489825,0.74387458,62397.0,62396.0,0.0100638]
[1728832490050,0.84387458,62397.0,62396.0,0.0100638]
[1728832492785,0.733902,62397.0,62396.0,0.0100638]
[1728832493010,0.83887458,62397.0,62396.0,0.0100638]
[1728832500230,0.76317458,62397.0,62396.0,0.0100638]
[1728832500468,0.856802,62397.0,62396.0,0.0100638]
[1728832500706,0.856802,62397.0,62396.0,0.78229019]
[1728832500707,0.702638,62397.0,62396.0,0.78229019]
[1728832500938,0.702638,62397.0,62396.0,0.66193252]
[1728832501174,0.702638,62397.0,62396.0,0.69407259]
[1728832501432,0.702638,62397.0,62396.0,0.79407259]
[1728832501675,0.701638,62397.0,62396.0,1.24798454]
[1728832501954,0.67365069,62397.0,62396.0,1.25798454]
[1728832502193,0.67365069,62397.0,62396.0,1.11015524]
[1728832502431,0.17265069,62397.0,62396.0,1.10015524]
[1728832502683,0.24042122,62406.0,62402.0,0.292389]
[1728832502924,0.24042122,62406.0,62405.0,0.1752725]
[1728832503164,0.24042122,62406.0,62405.0,0.23659737]
[1728832503432,0.001638,62409.0,62408.0,0.05514]
[1728832503646,0.001638,62409.0,62408.0,0.29618184]
[1728832503872,0.001638,62409.0,62408.0,0.4734582]
[1728832504109,0.001638,62409.0,62408.0,0.40142257]
[1728832504343,0.161871,62409.0,62408.0,0.47345752]
[1728832504582,0.161871,62409.0,62408.0,0.03992173]
[1728832505269,0.161871,62409.0,62408.0,0.11972173]
[1728832505498,0.161871,62409.0,62408.0,0.0928]
[1728832506424,0.161871,62409.0,62408.0,0.0878]
[1728832506652,0.162871,62409.0,62408.0,0.0978]
[1728832507157,0.167871,62409.0,62408.0,0.0978]
[1728832509207,0.35554358,62409.0,62408.0,0.0978]
[1728832509434,0.54504358,62409.0,62408.0,0.0978]
[1728832510391,0.54404358,62409.0,62408.0,0.0748]
[1728832510612,0.54504358,62409.0,62408.0,0.0868]
[1728832511070,0.439071,62409.0,62408.0,0.0768]
[1728832511719,0.439071,62409.0,62408.0,0.0818]
[1728832513305,0.54404358,62409.0,62408.0,0.0818]
[1728832518698,0.35454358,62409.0,62408.0,0.0818]
[1728832520513,1.06310988,62409.0,62408.0,0.0818]
[1728832521226,1.06810988,62409.0,62408.0,0.0818]
[1728832521452,0.90674017,62409.0,62408.0,0.0818]
[1728832523133,1.00674017,62409.0,62408.0,0.0818]
[1728832523600,1.00874017,62409.0,62408.0,0.0818]
[1728832524048,1.00674017,62409.0,62408.0,0.0818]
[1728832524265,1.0318369,62409.0,62408.0,0.0818]
[1728832525240,1.0338369,62409.0,62408.0,0.0818]
[1728832525479,1.05561247,62409.0,62408.0,0.082618]
[1728832525938,1.05561247,62409.0,62396.0,0.000819]
[1728832525939,0.440664,62397.0,62396.0,0.000819]
[1728832526170,0.54563658,62397.0,62396.0,0.000819]
[1728832526636,0.57073741,62397.0,62396.0,0.000819]
[1728832527086,0.73296142,62397.0,62396.0,0.006819]
[1728832527312,0.97803324,62397.0,62396.0,0.006819]
[1728832527551,0.97503324,62397.0,62396.0,0.000819]
[1728832527771,0.83316924,62397.0,62391.0,0.000818]
[1728832528005,0.33446878,62392.0,62391.0,0.000818]
[1728832528235,0.57729279,62392.0,62391.0,0.000818]
[1728832528457,0.77109279,62392.0,62391.0,0.000818]
[1728832529158,0.87109279,62392.0,62391.0,0.000818]
[1728832530110,0.70890001,62392.0,62391.0,0.001818]
[1728832530326,0.87809279,62392.0,62391.0,0.001818]
[1728832531518,0.88209279,62392.0,62391.0,0.001818]
[1728832531966,0.72086878,62392.0,62391.0,0.001818]
[1728832532192,0.52706878,62392.0,62391.0,0.001818]
[1728832539344,0.82706878,62392.0,62391.0,0.001818]
[1728832540890,0.62706878,62392.0,62391.0,0.001818]
[1728832541351,0.78734478,62392.0,62391.0,0.001818]
[1728832543744,0.68734478,62392.0,62391.0,0.001818]
[1728832545649,0.97664478,62392.0,62391.0,0.001818]
[1728832546129,1.07664478,62392.0,62391.0,0.001818]
[1728832546620,1.23786879,62392.0,62391.0,0.001818]
[1728832547141,1.3952385,62392.0,62391.0,0.001818]
[1728832547387,1.8882385,62392.0,62391.0,0.000818]
[1728832547628,1.8962385,62392.0,62391.0,0.001818]
[1728832547846,1.9072385,62392.0,62391.0,0.002818]
[1728832548142,1.94844306,62392.0,62391.0,0.002818]
[1728832548593,1.95344306,62392.0,62391.0,0.002818]
[1728832548823,0.58088301,62388.0,62387.0,0.000819]
[1728832549079,0.74210702,62388.0,62387.0,0.000819]
[1728832549561,1.03641242,62388.0,62387.0,0.000819]
[1728832549775,1.01130702,62388.0,62387.0,0.000819]
[1728832550239,1.25672824,62388.0,62387.0,0.000819]
[1728832550456,0.63990734,62379.0,62378.0,0.000819]
[1728832551623,0.64490734,62379.0,62378.0,0.000819]
[1728832551882,0.90613135,62379.0,62378.0,0.000819]
[1728832552108,0.90713135,62379.0,62378.0,0.006819]
[1728832552327,1.06850106,62379.0,62378.0,0.006819]
[1728832552554,1.56750106,62379.0,62378.0,0.000819]
[1728832553490,1.56850106,62379.0,62378.0,0.003819]
[1728832553714,1.40713135,62379.0,62378.0,0.000819]
[1728832554168,0.160341,62367.0,62366.0,0.0075]
[1728832554395,0.37073834,62367.0,62366.0,0.0075]
[1728832556182,0.87173834,62367.0,62366.0,0.0175]
[1728832556398,0.87073834,62367.0,62366.0,0.0125]
[1728832556612,0.87073834,62367.0,62366.0,0.0075]
[1728832556840,0.87073834,62367.0,62366.0,0.0085]
[1728832557330,0.87073834,62367.0,62347.0,0.07108817]
[1728832557331,0.37076134,62358.0,62348.0,0.01278442]
[1728832557563,0.37076134,62358.0,62347.0,0.00726891]
[1728832557564,0.80328535,62358.0,62347.0,0.00726891]
[1728832558012,0.90828535,62358.0,62347.0,0.00726891]
[1728832558951,0.531664,62358.0,62347.0,0.00726891]
[1728832559170,0.84206134,62358.0,62347.0,0.00726891]
[1728832559427,1.34406134,62358.0,62347.0,0.00726891]
[1728832559667,1.40245363,62358.0,62347.0,0.00726891]
[1728832559889,1.47637966,62358.0,62347.0,0.00726891]
[1728832560800,1.63760367,62358.0,62347.0,0.00726891]
[1728832562198,1.63760367,62358.0,62347.0,0.00308791]
[1728832562199,0.16039,62348.0,62347.0,0.00308791]
[1728832562447,0.32974783,62348.0,62347.0,0.00308791]
[1728832562682,0.16039,62348.0,62347.0,0.00308791]
[1728832563387,0.16039,62348.0,62347.0,0.00304791]
[1728832563607,0.16139,62348.0,62347.0,0.00304791]
[1728832564318,0.26139,62348.0,62347.0,0.00304791]
[1728832564537,0.76139,62348.0,62347.0,0.00304791]
[1728832564786,0.76239,62348.0,62347.0,0.01004791]
[1728832566685,0.75489,62348.0,62347.0,0.01004791]
[1728832568385,0.25489,62348.0,62347.0,0.01004791]
[1728832572694,0.25489,62348.0,62347.0,0.01086691]
[1728832577019,0.102,62348.0,62347.0,0.30416691]
[1728832577254,0.160383,62351.0,62347.0,0.30590746]
[1728832577506,0.56116622,62355.0,62348.0,0.05688055]
[1728832577733,0.160386,62350.0,62349.0,0.05185728]
[1728832577952,0.160386,62350.0,62349.0,0.05688013]
[1728832578207,0.160384,62350.0,62349.0,0.05688013]
[1728832578895,0.001,62351.0,62349.0,0.05688013]
[1728832579124,0.161382,62351.0,62350.0,0.02474014]
[1728832579360,0.161382,62351.0,62350.0,0.02477744]
[1728832580096,0.160382,62351.0,62350.0,0.01975458]
[1728832580320,0.161382,62351.0,62350.0,0.01975458]
[1728832580569,0.260382,62351.0,62350.0,0.01975458]
[1728832581021,0.261382,62351.0,62350.0,0.02775458]
[1728832581252,0.262382,62351.0,62350.0,0.03875458]
[1728832582961,0.262382,62351.0,62350.0,0.03877704]
[1728832585399,0.26402,62351.0,62350.0,0.03877704]
[1728832587328,0.26402,62351.0,62350.0,0.05123664]
[1728832589993,0.3692976,62351.0,62350.0,0.05123664]
[1728832590238,0.3692976,62351.0,62350.0,0.05127593]
[1728832591109,0.6692976,62351.0,62350.0,0.05127593]
[1728832591335,0.56402,62351.0,62350.0,0.05127593]
[1728832592198,0.66402,62351.0,62350.0,0.05127593]
[1728832593509,0.76402,62351.0,62350.0,0.05127593]
[1728832594429,0.76402,62351.0,62350.0,0.05127879]
[1728832594874,0.76402,62351.0,62350.0,0.019]
[1728832595633,0.76402,62351.0,62350.0,0.03104279]
[1728832595869,0.76402,62351.0,62350.0,0.05126711]
[1728832596535,0.76402,62351.0,62350.0,0.03882104]
[1728832597002,0.76402,62351.0,62350.0,0.05126824]
[1728832597470,0.603638,62351.0,62350.0,0.05126824]
[1728832597698,0.603638,62351.0,62350.0,0.69484538]
[1728832597925,0.603638,62351.0,62350.0,1.03766193]
[1728832598155,0.603638,62351.0,62350.0,1.04266193]
[1728832598620,0.602638,62351.0,62350.0,0.87315108]
[1728832598862,0.602638,62351.0,62350.0,0.86515108]
[1728832599092,0.24042122,62364.0,62362.0,0.13734]
[1728832599285,0.40076922,62364.0,62363.0,0.23618544]
[1728832599567,0.24042122,62364.0,62363.0,0.23618544]
[1728832599811,0.4259546,62368.0,62364.0,0.05514]
[1728832600035,0.320688,62366.0,62365.0,0.01982143]
[1728832600258,0.481031,62366.0,62365.0,0.04282143]
[1728832600502,0.160343,62366.0,62365.0,0.04282143]
[1728832601653,0.160343,62366.0,62365.0,0.03075937]
[1728832601920,0.160343,62366.0,62365.0,0.04277215]
[1728832602134,0.161343,62366.0,62365.0,0.05077215]
[1728832602353,0.161343,62366.0,62365.0,0.05977215]
[1728832602573,0.161343,62366.0,62365.0,0.04775937]
[1728832602821,0.161343,62366.0,62365.0,0.05977215]
[1728832603071,0.161343,62366.0,62365.0,0.04775937]
[1728832603289,0.161343,62366.0,62365.0,0.05977215]
[1728832603518,0.161343,62366.0,62365.0,0.04775937]
[1728832604218,0.161343,62366.0,62365.0,0.05977215]
[1728832604662,0.161343,62366.0,62365.0,0.04775937]
[1728832605565,0.33056427,62366.0,62365.0,0.04775937]
[1728832606530,0.33056427,62366.0,62365.0,0.017]
[1728832607428,0.43056427,62366.0,62365.0,0.017]
[1728832610455,0.43220227,62366.0,62365.0,0.017]
[1728832611122,0.60142354,62366.0,62365.0,0.017]
[1728832611583,0.79172354,62366.0,62365.0,0.009]
[1728832611812,0.79172354,62366.0,62351.0,0.000819]
[1728832611813,0.71258054,62366.0,62351.0,0.000819]
[1728832612043,0.534481,62366.0,62365.0,0.002]
[1728832612268,0.534481,62366.0,62365.0,0.004]
[1728832612501,0.534481,62366.0,62365.0,0.006]
[1728832612502,0.69570501,62366.0,62365.0,0.006]
[1728832612743,0.72081925,62366.0,62365.0,0.002]
[1728832612983,0.160379,62352.0,62351.0,0.004819]
[1728832613226,0.32960027,62352.0,62351.0,0.006819]
[1728832613448,0.32960027,62352.0,62351.0,0.000819]
[1728832615499,0.33060027,62352.0,62351.0,0.018819]